bitfinex/quotes_SOLUSD_20250718
["timestamp","ask_amount","ask_price","bid_price","bid_amount"]
[1752878253383,0.06,176.98,176.97,26.0]
[1752878253581,0.06,176.98,176.97,71.76291583]
[1752878253781,0.06,176.98,176.97,89.1575998]
[1752878254588,0.06,176.98,176.97,94.80827505]
[1752878260869,0.06,176.98,176.97,53.18827505]
[1752878261074,0.06,176.98,176.97,94.76827505]
[1752878274105,0.06,176.98,176.97,95.33334257]
[1752878276118,0.06,176.98,176.97,182.93334257]
[1752878276336,0.06,176.98,176.97,182.36827505]
[1752878280607,0.06,176.98,176.97,134.5275998]
[1752878280812,0.06,176.98,176.97,20.9275998]
[1752878281022,0.06,176.98,176.97,62.3675998]
[1752878282489,0.06,176.98,176.97,58.22468397]
[1752878282696,0.06,176.98,176.97,62.3675998]
[1752878285605,0.06,176.98,176.97,20.9275998]
[1752878285811,0.76,176.98,176.97,62.3475998]
[1752878286307,0.06,176.98,176.97,62.3475998]
[1752878287328,0.06,176.98,176.97,62.9575998]
[1752878287632,0.06,176.98,176.97,62.3475998]
[1752878288303,0.71,176.98,176.97,62.3475998]
[1752878290123,0.06,176.98,176.97,62.3475998]
[1752878293019,0.71,176.98,176.97,62.3475998]
[1752878293406,0.06,176.98,176.97,62.3475998]
[1752878296110,0.71,176.98,176.97,62.3475998]
[1752878296427,0.71,176.98,176.97,58.20468397]
[1752878296627,0.71,176.98,176.97,62.3475998]
[1752878299710,0.06,176.98,176.97,62.3475998]
[1752878300715,0.71,176.98,176.97,62.3475998]
[1752878301117,0.06,176.98,176.97,62.3475998]
[1752878302633,0.06,176.98,176.97,20.9275998]
[1752878302818,0.06,176.98,176.97,62.2675998]
[1752878305543,0.71,176.98,176.97,62.2675998]
[1752878305837,0.06,176.98,176.97,62.8775998]
[1752878307042,0.06,176.98,176.97,67.03239316]
[1752878307730,0.06,176.98,176.97,60.77171791]
[1752878307927,0.06,176.98,176.97,66.42239316]
[1752878309017,0.06,176.98,176.97,67.91139779]
[1752878315951,0.71,176.98,176.97,62.18072254]
[1752878316143,0.06,176.98,176.97,62.18072254]
[1752878320548,0.06,176.98,176.97,67.83139779]
[1752878320747,0.06,176.98,176.97,69.00646531]
[1752878321254,0.06,176.98,176.97,68.44139779]
[1752878323255,0.06,176.98,176.97,69.00646531]
[1752878326986,0.06,176.98,176.97,152.47042674]
[1752878327135,0.06,176.98,176.97,156.04139779]
[1752878329962,4.13603857,177.06,177.03,10.0]
[1752878330261,4.13603857,177.06,177.04,57.98468397]
[1752878330965,2.64674058,177.06,177.04,57.98468397]
[1752878331269,5.64812199,177.05,177.04,57.98468397]
[1752878332053,6.34812199,177.05,177.04,57.98468397]
[1752878339852,6.34812199,177.05,177.04,57.92468397]
[1752878340471,6.34812199,177.05,177.04,41.14]
[1752878340667,8.99486257,177.05,177.04,41.14]
[1752878340865,6.34812199,177.05,177.04,41.14]
[1752878341962,6.34812199,177.05,177.04,57.92468397]
[1752878342871,0.7,177.07,177.05,16.78468397]
[1752878343060,0.7,177.07,177.06,67.92468397]
[1752878344171,6.34748404,177.07,177.06,57.92468397]
[1752878344482,6.34748404,177.07,177.06,67.92468397]
[1752878346849,5.64748404,177.07,177.06,67.92468397]
[1752878347654,5.64684623,177.09,177.07,16.78468397]
[1752878347863,5.64684623,177.09,177.08,41.12]
[1752878348071,0.06,177.1,177.09,16.78468397]
[1752878348275,8.35328761,177.1,177.09,41.1]
[1752878348466,0.69,177.09,177.06,10.0]
[1752878348770,2.64674058,177.08,177.07,41.1]
[1752878348976,3.33674058,177.08,177.07,41.1]
[1752878349389,0.69,177.08,177.07,51.1]
[1752878349757,0.69,177.08,177.07,41.1]
[1752878349958,0.69,177.08,177.07,51.1]
[1752878350658,6.33716512,177.08,177.07,51.1]
[1752878350853,5.64716512,177.08,177.07,51.1]
[1752878351081,8.9839057,177.08,177.07,51.1]
[1752878351286,6.33716512,177.08,177.07,51.1]
[1752878351792,6.33716512,177.08,177.07,41.1]
[1752878353251,6.33716512,177.08,177.07,51.1]
[1752878353651,6.33716512,177.08,177.07,41.1]
[1752878355487,8.9839057,177.08,177.07,41.1]
[1752878355779,8.9839057,177.08,177.07,41.08]
[1752878356856,8.9839057,177.08,177.05,26.78468397]
[1752878357169,0.69,177.07,177.06,51.06]
[1752878358284,6.33748404,177.07,177.06,41.06]
[1752878358465,8.98422462,177.07,177.06,41.06]
[1752878361112,8.98422462,177.07,177.06,51.06]
[1752878361113,6.33748404,177.07,177.06,51.06]
[1752878362994,6.33748404,177.07,177.06,41.06]
[1752878363199,6.33748404,177.07,177.06,51.06]
[1752878363381,6.33748404,177.07,177.06,41.04]
[1752878363688,6.33748404,177.07,177.06,51.04]
[1752878364098,6.33748404,177.07,177.06,41.04]
[1752878364303,6.33748404,177.07,177.06,51.04]
[1752878364892,6.33748404,177.07,177.06,41.04]
[1752878364893,8.98422462,177.07,177.06,41.04]
[1752878365099,6.33748404,177.07,177.06,51.04]
[1752878365301,6.33748404,177.07,177.06,41.02]
[1752878365505,6.33748404,177.07,177.06,51.02]
[1752878366080,6.33748404,177.07,177.06,41.02]
[1752878366299,6.33748404,177.07,177.06,51.02]
[1752878367479,6.33748404,177.07,177.06,41.02]
[1752878367700,6.33748404,177.07,177.06,51.02]
[1752878367903,6.33748404,177.07,177.06,51.05]
[1752878368398,6.33748404,177.07,177.06,10.03]
[1752878368602,6.33748404,177.07,177.06,41.05]
[1752878371628,8.98422462,177.07,177.06,41.03]
[1752878373109,6.33748404,177.07,177.06,41.03]
[1752878373403,5.64748404,177.07,177.06,51.03]
[1752878374206,5.64748404,177.07,177.06,41.03]
[1752878374505,6.33748404,177.07,177.06,41.03]
[1752878375686,6.33748404,177.07,177.06,41.01]
[1752878375888,8.98422462,177.07,177.06,41.01]
[1752878382925,6.33748404,177.07,177.06,41.01]
[1752878383120,8.98422462,177.07,177.06,41.01]
[1752878386021,11.75673632,177.07,177.06,41.01]
[1752878387328,8.98422462,177.07,177.06,41.01]
[1752878391132,6.33748404,177.07,177.06,41.01]
[1752878391301,8.98422462,177.07,177.06,41.01]
[1752878392628,8.98422462,177.07,177.06,0.03]
[1752878392917,8.98422462,177.07,177.06,40.95]
[1752878395535,11.77509044,177.07,177.06,40.95]
[1752878397935,9.12834986,177.07,177.06,40.95]
[1752878398155,11.77509044,177.07,177.06,40.95]
[1752878399642,11.77509044,177.07,177.06,0.03]
[1752878399931,11.77509044,177.07,177.06,12.52813838]
[1752878400138,11.77509044,177.07,177.04,12.3886768]
[1752878400349,2.64674058,177.05,177.02,0.03]
[1752878400511,2.64674058,177.03,177.02,40.91]
[1752878400703,3.35674058,177.03,177.0,0.03]
[1752878400903,2.64674058,177.01,176.97,0.67]
[1752878401207,76.79448019,177.07,176.96,0.03]
[1752878401208,2.64674058,176.98,176.96,0.03]
[1752878401411,2.64674058,176.97,176.96,40.89]
[1752878401621,0.71,177.0,176.96,41.56]
[1752878401622,2.64674058,176.99,176.96,41.56]
[1752878401828,8.29709655,176.98,176.96,40.89]
[1752878402131,2.64674058,176.97,176.96,0.03]
[1752878402315,3.35674058,176.97,176.96,0.03]
[1752878403814,9.00741583,176.97,176.96,0.03]
[1752878404837,8.29741583,176.97,176.96,0.03]
[1752878405835,9.00741583,176.97,176.96,0.03]
[1752878406820,9.00741583,176.97,176.95,40.86]
[1752878407133,3.32674058,176.96,176.95,40.86]
[1752878407942,2.64674058,176.96,176.95,40.86]
[1752878408235,2.64674058,176.96,176.93,0.69]
[1752878408529,8.29773515,176.96,176.95,40.84]
[1752878408736,8.2967773,176.99,176.96,16.78468397]
[1752878408933,8.2967773,176.99,176.97,0.69]
[1752878408934,5.65003672,176.99,176.97,0.69]
[1752878409136,5.65003672,176.99,176.98,40.84]
[1752878409337,8.2967773,176.99,176.98,40.84]
[1752878409638,8.2967773,176.99,176.98,41.53]
[1752878409930,5.65003672,176.99,176.98,41.53]
[1752878410436,0.68,177.02,176.98,41.53]
[1752878410437,5.64971751,177.0,176.98,41.53]
[1752878410617,5.64971751,177.0,176.99,0.69]
[1752878411119,5.64971751,177.0,176.98,41.53]
[1752878411323,5.64971751,177.0,176.99,0.69]
[1752878411850,5.64971751,177.0,176.98,41.53]
[1752878412006,5.64971751,177.0,176.99,0.69]
[1752878413344,5.64939833,177.01,176.99,0.69]
[1752878413516,5.64939833,177.01,177.0,40.84]
[1752878413709,5.64939833,177.01,177.0,41.53]
[1752878415536,8.50881954,177.02,177.0,41.53]
[1752878415837,5.6490792,177.02,177.01,0.69]
[1752878417941,5.64876009,177.03,177.01,0.69]
[1752878418163,8.29550067,177.03,177.02,40.82]
[1752878418945,5.64876009,177.03,177.02,40.82]
[1752878419742,8.52771038,177.03,177.02,40.82]
[1752878420244,11.17445096,177.03,177.02,40.82]
[1752878422949,8.52771038,177.03,177.02,40.82]
[1752878423127,5.64876009,177.03,177.02,40.82]
[1752878424321,5.64876009,177.03,177.02,41.51]
[1752878425036,2.64674058,177.04,177.02,41.51]
[1752878426850,2.64674058,177.04,177.02,40.82]
[1752878427029,5.64876009,177.03,177.02,40.82]
[1752878427551,5.64876009,177.03,177.02,41.51]
[1752878428448,5.64876009,177.03,177.02,51.51]
[1752878428752,8.43632414,177.04,177.02,68.29468397]
[1752878428952,8.43632414,177.04,177.03,0.69]
[1752878434264,8.43632414,177.04,177.02,68.29468397]
[1752878435552,8.43632414,177.04,177.02,58.29468397]
[1752878435755,8.43632414,177.04,177.03,10.0]
[1752878436471,8.43632414,177.04,177.02,68.29468397]
[1752878436769,8.43632414,177.04,177.03,10.0]
[1752878437449,8.43632414,177.04,177.03,10.68]
[1752878437867,8.43632414,177.04,177.03,10.0]
[1752878439274,5.64849977,177.04,177.03,10.0]
[1752878440256,8.98524035,177.04,177.01,10.0]
[1752878440567,3.33674058,177.03,177.02,40.72]
[1752878441353,5.64849977,177.04,177.03,10.0]
[1752878441864,5.64849977,177.04,177.02,51.4]
[1752878442082,5.64849977,177.04,177.02,50.72]
[1752878442361,6.33849977,177.04,177.02,50.72]
[1752878443069,3.33674058,177.05,177.02,51.4]
[1752878443649,3.33674058,177.05,177.02,50.72]
[1752878443857,3.33674058,177.04,177.02,50.72]
[1752878444173,5.64876009,177.03,177.02,50.72]
[1752878444573,5.64876009,177.03,177.02,40.72]
[1752878444757,5.64876009,177.03,177.02,50.72]
[1752878447179,5.64876009,177.03,177.02,51.4]
[1752878447468,23.10740091,177.03,176.98,10.0]
[1752878447772,2.64674058,177.0,176.99,40.68]
[1752878447951,3.33674058,177.0,176.99,40.68]
[1752878448151,5.64939833,177.01,176.99,51.36]
[1752878448352,2.64674058,177.0,176.98,10.0]
[1752878448654,3.33674058,177.0,176.99,40.68]
[1752878449048,0.69,177.0,176.99,40.68]
[1752878449371,3.33674058,177.0,176.99,40.68]
[1752878449570,3.33674058,177.0,176.99,50.68]
[1752878450473,8.98645809,177.0,176.99,50.68]
[1752878451573,8.98645809,177.0,176.99,40.68]
[1752878453269,8.98645809,177.0,176.99,50.68]
[1752878454872,8.98645809,177.0,176.99,40.66]
[1752878456475,8.29645809,177.0,176.99,50.66]
[1752878457960,8.98645809,177.0,176.99,50.66]
[1752878458152,8.29645809,177.0,176.99,50.66]
[1752878459056,8.29645809,177.0,176.99,40.66]
[1752878459057,8.98645809,177.0,176.99,40.66]
[1752878459255,23.11075187,177.0,176.97,26.78468397]
[1752878459462,0.69,176.99,176.98,40.66]
[1752878459970,5.65035597,176.98,176.97,26.78468397]
[1752878460288,5.65035597,176.98,176.97,10.0]
[1752878460483,8.29709655,176.98,176.97,40.64]
[1752878461179,8.98709655,176.98,176.97,40.64]
[1752878461560,8.29709655,176.98,176.97,50.64]
[1752878461764,8.29709655,176.98,176.97,51.32]
[1752878462659,8.29709655,176.98,176.97,40.64]
[1752878462859,5.65035597,176.98,176.97,40.64]
[1752878463060,5.65035597,176.98,176.97,51.32]
[1752878464460,8.29709655,176.98,176.97,40.64]
[1752878464661,8.98709655,176.98,176.97,40.64]
[1752878465973,8.98709655,176.98,176.97,50.64]
[1752878466175,8.98709655,176.98,176.97,40.64]
[1752878467791,8.98709655,176.98,176.97,50.64]
[1752878467965,8.29709655,176.98,176.97,50.64]
[1752878468891,8.29709655,176.98,176.97,51.32]
[1752878469390,8.29709655,176.98,176.97,40.64]
[1752878470290,8.98709655,176.98,176.97,40.64]
[1752878471284,8.29709655,176.98,176.97,40.64]
[1752878471467,8.29709655,176.98,176.97,50.64]
[1752878473985,8.35709655,176.98,176.97,50.64]
[1752878474901,8.35709655,176.98,176.97,40.64]
[1752878475077,8.35709655,176.98,176.97,50.64]
[1752878477400,8.35709655,176.98,176.97,40.64]
[1752878477606,9.04709655,176.98,176.97,40.64]
[1752878481498,9.04709655,176.98,176.97,50.64]
[1752878481804,8.35709655,176.98,176.97,50.64]
[1752878484007,8.35709655,176.98,176.96,0.71]
[1752878484199,8.29741583,176.97,176.96,0.71]
[1752878484508,8.29741583,176.97,176.96,41.27]
[1752878485395,8.98741583,176.97,176.96,40.59]
[1752878485705,8.29741583,176.97,176.96,0.03]
[1752878485888,8.29741583,176.97,176.96,50.59]
[1752878486297,8.29741583,176.97,176.96,51.27]
[1752878487001,8.29741583,176.97,176.96,0.71]
[1752878487202,8.29741583,176.97,176.96,51.27]
[1752878488606,8.29741583,176.97,176.96,0.03]
[1752878488607,8.98741583,176.97,176.96,0.03]
[1752878488792,8.98741583,176.97,176.96,40.57]
[1752878490208,23.11410396,176.97,176.93,0.68]
[1752878490420,2.64674058,176.94,176.92,26.81468397]
[1752878490709,2.64674058,176.93,176.92,0.03]
[1752878490893,2.64674058,176.93,176.92,40.57]
[1752878491101,3.33674058,176.93,176.91,0.03]
[1752878491287,3.33674058,176.92,176.91,0.03]
[1752878491483,3.33674058,176.92,176.91,40.57]
[1752878491709,3.33674058,176.92,176.9,1e-08]
[1752878492010,3.33674058,176.91,176.88,40.57]
[1752878492213,8.2999714,176.89,176.88,40.57]
[1752878492391,8.2999714,176.89,176.88,0.03]
[1752878492595,8.9899714,176.89,176.88,0.03]
[1752878492914,6.34323082,176.89,176.88,0.03]
[1752878493096,8.9899714,176.89,176.88,0.03]
[1752878493892,8.9899714,176.89,176.87,0.03]
[1752878494095,3.33674058,176.88,176.85,0.03]
[1752878494403,2.64674058,176.86,176.85,1e-08]
[1752878495216,3.33674058,176.86,176.85,1e-08]
[1752878496016,3.33674058,176.86,176.83,0.03]
[1752878496202,8.3015698,176.84,176.83,0.03]
[1752878496608,8.9715698,176.84,176.83,0.03]
[1752878498906,8.9715698,176.84,176.82,0.03]
[1752878498907,10.47211939,176.84,176.82,0.03]
[1752878499096,0.67,176.83,176.82,0.03]
[1752878499290,3.52344328,176.83,176.82,0.03]
[1752878499608,4.81729017,176.83,176.82,0.03]
[1752878500717,10.47243918,176.83,176.82,0.03]
[1752878501101,5.65514901,176.83,176.82,0.69]
[1752878501500,5.65481854,176.85,176.82,10.69]
[1752878501698,5.65481854,176.85,176.83,0.66]
[1752878504214,5.65481854,176.85,176.82,10.03]
[1752878504518,5.65481854,176.85,176.84,0.66]
[1752878505421,4.14729017,176.85,176.84,0.66]
[1752878506497,4.14729017,176.85,176.83,0.66]
[1752878506697,6.93698507,176.85,176.83,0.66]
[1752878507908,5.65482922,176.84,176.82,10.03]
[1752878508638,5.65482922,176.84,176.83,0.66]
[1752878510723,5.65482922,176.84,176.83,41.16]
[1752878511035,5.65482922,176.84,176.83,51.16]
[1752878512303,5.65482922,176.84,176.83,50.5]
[1752878513227,5.65482922,176.84,176.83,51.16]
[1752878514518,5.65482922,176.84,176.83,50.5]
[1752878514716,5.65482922,176.84,176.83,40.5]
[1752878514921,5.65482922,176.84,176.83,50.5]
[1752878515229,5.65355042,176.88,176.86,10.0]
[1752878515432,5.65355042,176.88,176.86,51.14]
[1752878515625,9.80084059,176.88,176.86,51.14]
[1752878518222,5.65355042,176.88,176.87,0.66]
[1752878519032,5.71323082,176.89,176.87,0.66]
[1752878519223,5.71323082,176.89,176.88,40.46]
[1752878519412,0.06,176.89,176.88,67.90468397]
[1752878520232,0.06,176.89,176.88,72.05197414]
[1752878523737,0.06,176.89,176.88,77.70552456]
[1752878525929,0.06,176.89,176.88,72.03197414]
[1752878526138,0.06,176.89,176.88,77.68552456]
[1752878529737,0.06,176.89,176.88,31.59197414]
[1752878529927,0.06,176.89,176.88,71.35197414]
[1752878530318,0.06,176.89,176.88,72.03197414]
[1752878530513,0.06,176.89,176.88,67.88468397]
[1752878530734,0.06,176.89,176.88,72.03197414]
[1752878532615,0.06,176.89,176.88,71.35197414]
[1752878534923,0.06,176.89,176.88,72.03197414]
[1752878535549,0.06,176.89,176.88,67.20468397]
[1752878538637,0.72,176.89,176.87,10.0]
[1752878538853,0.72,176.89,176.86,16.78468397]
[1752878538854,4.86729017,176.89,176.88,40.4]
[1752878540029,19.78742649,176.88,176.84,10.0]
[1752878540231,4.80729017,176.87,176.85,50.38]
[1752878540431,4.14729017,176.87,176.86,50.38]
[1752878541132,4.80729017,176.87,176.86,50.38]
[1752878542234,10.46116024,176.87,176.86,50.38]
[1752878542445,6.31387007,176.87,176.86,50.38]
[1752878543029,0.06,176.89,176.87,26.78468397]
[1752878543355,5.71335061,176.89,176.88,57.16468397]
[1752878543533,5.71335061,176.89,176.88,67.16468397]
[1752878544737,0.06,176.89,176.88,57.16468397]
[1752878544935,0.06,176.89,176.88,67.16468397]
[1752878545137,4.86729017,176.89,176.88,40.38]
[1752878546041,4.86729017,176.89,176.88,50.38]
[1752878547943,10.52052099,176.89,176.88,40.38]
[1752878548255,10.52052099,176.89,176.88,50.38]
[1752878549551,0.06,176.89,176.88,67.84468397]
[1752878549762,0.72,176.89,176.88,50.38]
[1752878549943,0.72,176.89,176.85,4.82729017]
[1752878549944,4.86729017,176.89,176.87,10.0]
[1752878550126,4.86729017,176.89,176.88,50.36]
[1752878550127,4.20729017,176.89,176.88,50.36]
[1752878550862,10.52052099,176.89,176.88,50.36]
[1752878551039,10.52052099,176.89,176.88,40.36]
[1752878551238,6.37323082,176.89,176.88,40.36]
[1752878551455,10.52052099,176.89,176.88,40.36]
[1752878557546,10.52052099,176.89,176.84,10.0]
[1752878557746,5.71323082,176.89,176.85,40.34]
[1752878557954,4.14729017,176.86,176.85,40.34]
[1752878558155,4.82729017,176.86,176.85,40.34]
[1752878559461,4.82729017,176.86,176.85,50.34]
[1752878559766,10.48147992,176.86,176.85,50.34]
[1752878560769,5.65355042,176.88,176.86,16.78468397]
[1752878560944,5.65355042,176.88,176.87,51.02]
[1752878561146,5.71333759,176.89,176.88,16.78468397]
[1752878561449,0.06,176.89,176.88,31.61197414]
[1752878565170,0.06,176.89,176.88,26.78468397]
[1752878565374,0.06,176.89,176.88,67.10468397]
[1752878568049,0.74,176.89,176.87,10.0]
[1752878568377,0.06,176.89,176.88,50.32]
[1752878568858,0.74,176.89,176.88,50.32]
[1752878569054,0.74,176.89,176.88,40.32]
[1752878569273,4.88729017,176.89,176.88,40.32]
[1752878569480,4.88729017,176.89,176.86,26.78468397]
[1752878569654,4.88729017,176.89,176.88,10.0]
[1752878569852,0.06,176.89,176.88,50.32]
[1752878570546,0.06,176.89,176.86,10.68]
[1752878570745,0.06,176.89,176.88,10.0]
[1752878570947,0.06,176.89,176.87,40.32]
[1752878571147,0.74,176.89,176.88,10.0]
[1752878571366,5.65355042,176.88,176.87,50.32]
[1752878572875,4.82729017,176.88,176.83,0.03]
[1752878573065,4.14729017,176.86,176.85,10.0]
[1752878573250,4.14729017,176.86,176.85,50.3]
[1752878573452,4.82729017,176.86,176.85,50.3]
[1752878573991,20.52630787,176.89,176.85,50.98]
[1752878574178,4.14729017,176.88,176.85,50.98]
[1752878574866,9.80116024,176.87,176.85,50.98]
[1752878575060,9.80116024,176.87,176.85,50.3]
[1752878575584,9.80116024,176.87,176.85,40.3]
[1752878575879,9.80116024,176.87,176.85,50.3]
[1752878576084,5.65387007,176.87,176.85,50.3]
[1752878576262,0.68,176.86,176.83,10.03]
[1752878576580,4.14729017,176.85,176.84,40.3]
[1752878576776,4.14729017,176.85,176.84,50.3]
[1752878576979,4.14729017,176.85,176.84,40.3]
[1752878577482,10.48179964,176.85,176.84,50.3]
[1752878577674,10.48179964,176.85,176.84,40.3]
[1752878578579,6.33450947,176.85,176.84,50.3]
[1752878578789,10.48179964,176.85,176.84,50.3]
[1752878580481,10.48179964,176.85,176.84,40.3]
[1752878580698,10.48179964,176.85,176.83,0.03]
[1752878580885,4.82729017,176.84,176.83,0.03]
[1752878581393,1.5693,176.83,176.79,0.03]
[1752878581567,4.14729017,176.8,176.79,0.03]
[1752878582067,4.82729017,176.8,176.79,0.03]
[1752878583082,10.48339876,176.8,176.79,0.03]
[1752878583466,10.48339876,176.8,176.79,40.33]
[1752878587005,6.33610859,176.8,176.79,40.33]
[1752878587210,10.48339876,176.8,176.79,40.33]
[1752878592200,9.80339876,176.8,176.79,40.33]
[1752878592903,10.48339876,176.8,176.79,40.33]
[1752878593614,5.65585688,176.81,176.79,41.03]
[1752878593805,5.65585688,176.81,176.8,0.7]
[1752878594112,5.65546883,176.82,176.8,10.7]
[1752878594295,5.65546883,176.82,176.81,50.28]
[1752878594496,5.65546883,176.82,176.81,50.98]
[1752878594693,9.802759,176.82,176.81,50.98]
[1752878595312,9.802759,176.82,176.81,50.28]
[1752878597232,9.80243918,176.83,176.81,50.28]
[1752878597517,10.48243918,176.83,176.81,50.28]
[1752878597697,10.48243918,176.83,176.81,40.28]
[1752878597889,10.48243918,176.83,176.81,50.28]
[1752878598999,4.82729017,176.82,176.79,10.03]
[1752878599226,14.13787253,176.83,176.8,40.96]
[1752878599520,18.2851627,176.83,176.81,0.7]
[1752878599693,18.2851627,176.83,176.82,40.26]
[1752878600623,24.62031171,176.83,176.82,40.26]
[1752878602824,24.68031171,176.83,176.82,40.26]
[1752878604417,27.45687278,176.83,176.82,40.26]
[1752878605217,24.68031171,176.83,176.82,40.26]
[1752878614035,27.48389777,176.83,176.82,40.26]
[1752878616530,24.68031171,176.83,176.82,40.26]
[1752878616733,24.00031171,176.83,176.82,40.26]
[1752878618101,24.00031171,176.83,176.82,40.94]
[1752878618525,5.71514901,176.83,176.82,40.94]
[1752878623437,8.5340073,176.83,176.82,40.94]
[1752878624854,8.5340073,176.83,176.82,40.97]
[1752878627044,5.71514901,176.83,176.82,40.97]
[1752878629238,5.71514901,176.83,176.82,40.29]
[1752878630654,5.71514901,176.83,176.82,40.97]
[1752878631036,5.71514901,176.83,176.82,40.29]
[1752878631629,8.36844436,176.83,176.82,40.29]
[1752878631833,5.71514901,176.83,176.82,40.29]
[1752878632133,8.49792742,176.83,176.82,50.97]
[1752878635349,5.71514901,176.83,176.82,50.29]
[1752878637162,5.71514901,176.83,176.82,40.29]
[1752878637344,5.71514901,176.83,176.82,50.29]
[1752878639867,6.42514901,176.83,176.82,50.21]
[1752878640253,5.71514901,176.83,176.82,50.21]
[1752878640770,9.07844436,176.83,176.82,40.21]
[1752878643965,9.07844436,176.83,176.82,50.21]
[1752878644267,9.07844436,176.83,176.82,40.21]
[1752878650084,5.71514901,176.83,176.82,40.89]
[1752878650383,9.07844436,176.83,176.82,40.21]
[1752878654163,6.42514901,176.83,176.82,40.21]
[1752878654360,8.36844436,176.83,176.82,40.21]
[1752878655569,9.07844436,176.83,176.82,40.21]
[1752878661393,9.07844436,176.83,176.82,40.15]
[1752878662997,9.07844436,176.83,176.82,0.03]
[1752878663185,9.07844436,176.83,176.82,40.15]
[1752878666884,9.07844436,176.83,176.82,0.03]
[1752878667083,9.07844436,176.83,176.82,40.15]
[1752878672700,8.36844436,176.83,176.82,40.15]
[1752878676586,9.07844436,176.83,176.82,40.15]
[1752878682708,8.36844436,176.83,176.82,40.15]
[1752878685410,8.36844436,176.83,176.82,0.03]
[1752878685594,8.36844436,176.83,176.82,40.09]
[1752878686592,8.36844436,176.83,176.82,0.03]
[1752878686796,8.36844436,176.83,176.79,0.03]
[1752878686797,26.0,176.8,176.79,0.03]
[1752878687092,31.65610859,176.8,176.79,0.03]
[1752878687292,31.65610859,176.8,176.79,40.09]
[1752878687506,31.65610859,176.8,176.79,40.77]
[1752878688198,34.30940394,176.8,176.79,40.09]
[1752878688701,35.01940394,176.8,176.79,40.09]
[1752878688908,35.01940394,176.8,176.78,0.2]
[1752878689091,9.01972388,176.79,176.78,1e-08]
[1752878689717,6.36642853,176.79,176.78,1e-08]
[1752878689888,9.01972388,176.79,176.78,1e-08]
[1752878690786,19.63290528,176.79,176.76,0.03]
[1752878690995,19.63290528,176.79,176.75,0.03]
[1752878690996,26.0,176.76,176.75,0.03]
[1752878691202,34.31068389,176.76,176.75,0.03]
[1752878691394,35.02068389,176.76,176.75,0.03]
[1752878692286,35.02068389,176.76,176.75,1e-08]
[1752878692719,31.65738854,176.76,176.75,1e-08]
[1752878692903,34.31068389,176.76,176.75,1e-08]
[1752878693508,35.02068389,176.76,176.75,1e-08]
[1752878697119,59.77733666,176.76,176.68,0.68]
[1752878697315,2.65329535,176.69,176.68,0.68]
[1752878697498,2.65329535,176.69,176.67,41.28]
[1752878697822,2.65329535,176.68,176.65,10.68]
[1752878698116,31.6588941,176.72,176.68,10.0]
[1752878698411,31.6588941,176.72,176.69,30.11797932]
[1752878698622,31.6588941,176.72,176.7,41.28]
[1752878698801,31.6588941,176.72,176.71,0.68]
[1752878699196,32.96358397,176.7,176.61,0.2]
[1752878699397,2.65329535,176.62,176.61,0.2]
[1752878699817,2.65329535,176.62,176.61,0.88]
[1752878700209,6.37187294,176.62,176.58,0.68]
[1752878700415,0.71,176.61,176.58,0.68]
[1752878700703,22.46985065,176.62,176.59,3.33329535]
[1752878700704,5.66187294,176.62,176.59,3.33329535]
[1752878701014,5.66187294,176.62,176.6,0.68]
[1752878701216,4.15550646,176.61,176.58,16.78468397]
[1752878701417,19.8165553,176.62,176.58,0.68]